[Event "Early-Titled-Tuesday-Blitz-January-30-2024"]
[Site "Chess.com"]
[Date "2024.01.30"]
[Round "8"]
[White "viktorgen2021"]
[Black "ValentunHulka"]
[Result "0-1"]
[WhiteElo "2574"]
[BlackElo "2791"]
[TimeControl "180+1"]
[EndTime "9:29:31 PST"]
[Termination "ValentunHulka won by resignation"]

1. d4 {[%clk 0:03:00.9]} 1... Nf6 {[%clk 0:03:00]} 2. Nf3 {[%clk 0:03:00.1]}
2... e6 {[%clk 0:03:00.5]} 3. g3 {[%clk 0:02:59.9]} 3... d5 {[%clk 0:03:00.5]}
4. c4 {[%clk 0:02:59.7]} 4... dxc4 {[%clk 0:02:55.7]} 5. Qa4+ {[%clk 0:02:58.3]}
5... Bd7 {[%clk 0:02:48.9]} 6. Qxc4 {[%clk 0:02:57.2]} 6... c5 {[%clk
0:02:49.6]} 7. dxc5 {[%clk 0:02:54.2]} 7... Nc6 {[%clk 0:02:40.3]} 8. Nc3 {[%clk
0:02:51.6]} 8... Qa5 {[%clk 0:02:34.5]} 9. Bg2 {[%clk 0:02:50.8]} 9... Qxc5
{[%clk 0:02:31.2]} 10. Qxc5 {[%clk 0:02:49.1]} 10... Bxc5 {[%clk 0:02:32.1]} 11.
O-O {[%clk 0:02:49.4]} 11... O-O {[%clk 0:02:30]} 12. Rd1 {[%clk 0:02:47.8]}
12... Rfd8 {[%clk 0:02:29.1]} 13. Bg5 {[%clk 0:02:47.6]} 13... Be8 {[%clk
0:02:28.6]} 14. Bxf6 {[%clk 0:02:46.7]} 14... gxf6 {[%clk 0:02:28]} 15. Rac1
{[%clk 0:02:41.1]} 15... Be7 {[%clk 0:02:27.3]} 16. a3 {[%clk 0:02:29.3]} 16...
h6 {[%clk 0:02:25.1]} 17. e3 {[%clk 0:02:06]} 17... Rxd1+ {[%clk 0:02:16.9]} 18.
Rxd1 {[%clk 0:02:05.9]} 18... Rd8 {[%clk 0:02:17.8]} 19. Nd4 {[%clk 0:01:56.5]}
19... Na5 {[%clk 0:02:07.7]} 20. b4 {[%clk 0:01:34.2]} 20... Nc4 {[%clk
0:02:01.1]} 21. Bxb7 {[%clk 0:01:28.9]} 21... Nxa3 {[%clk 0:02:01.2]} 22. Ra1
{[%clk 0:00:34.6]} 22... Bxb4 {[%clk 0:02:00.2]} 23. Nb1 {[%clk 0:00:27.2]}
23... Nxb1 {[%clk 0:01:54.7]} 24. Rxb1 {[%clk 0:00:28.1]} 24... a5 {[%clk
0:01:55.3]} 25. Bc6 {[%clk 0:00:25.6]} 25... Kf8 {[%clk 0:01:18.2]} 26. Kg2
{[%clk 0:00:18.3]} 26... e5 {[%clk 0:01:04.8]} 27. Bxe8 {[%clk 0:00:16.7]} 27...
exd4 {[%clk 0:01:05.4]} 28. Ba4 {[%clk 0:00:10.6]} 28... d3 {[%clk 0:01:05.8]}
29. Kf3 {[%clk 0:00:11.1]} 29... d2 {[%clk 0:01:06.3]} 30. Ke2 {[%clk
0:00:10.6]} 30... Ke7 {[%clk 0:01:06.8]} 31. Kd1 {[%clk 0:00:07.6]} 31... Rc8
{[%clk 0:01:07.2]} 32. Bb3 {[%clk 0:00:07.8]} 32... Rc3 {[%clk 0:01:03.4]} 33.
Ba2 {[%clk 0:00:05.4]} 33... Rc7 {[%clk 0:01:01]} 34. Bb3 {[%clk 0:00:05.4]}
34... Kd6 {[%clk 0:01:01.5]} 35. Ra1 {[%clk 0:00:04.2]} 35... Ke5 {[%clk
0:01:01.2]} 36. Bc2 {[%clk 0:00:03.7]} 36... Kd5 {[%clk 0:00:59.1]} 37. Bb3+
{[%clk 0:00:03.6]} 37... Ke4 {[%clk 0:00:59]} 38. Bc2+ {[%clk 0:00:03.7]} 38...
Kf3 {[%clk 0:00:58.8]} 39. Ra2 {[%clk 0:00:01.6]} 39... Kxf2 {[%clk 0:00:58.5]}
40. e4 {[%clk 0:00:02]} 40... Rc3 {[%clk 0:00:54.9]} 0-1

[Event "Early-Titled-Tuesday-Blitz-January-30-2024"]
[Site "Chess.com"]
[Date "2024.01.30"]
[Round "8"]
[White "Evgeny81"]
[Black "Flaccidmoves"]
[Result "1-0"]
[WhiteElo "2711"]
[BlackElo "2453"]
[TimeControl "180+1"]
[EndTime "9:29:31 PST"]
[Termination "Evgeny81 won by resignation"]

1. e4 {[%clk 0:03:00.2]} 1... e6 {[%clk 0:02:59]} 2. d4 {[%clk 0:02:58.9]} 2...
d5 {[%clk 0:02:59.5]} 3. e5 {[%clk 0:02:59.2]} 3... c5 {[%clk 0:02:59.5]} 4. c3
{[%clk 0:02:59.4]} 4... Nc6 {[%clk 0:02:59.2]} 5. Nf3 {[%clk 0:02:59.7]} 5...
Bd7 {[%clk 0:02:56.6]} 6. Be2 {[%clk 0:02:58.7]} 6... Nh6 {[%clk 0:02:52.3]} 7.
Bxh6 {[%clk 0:02:57.4]} 7... gxh6 {[%clk 0:02:52.3]} 8. Nbd2 {[%clk 0:02:57.5]}
8... Qb6 {[%clk 0:02:47.4]} 9. O-O {[%clk 0:02:42.7]} 9... cxd4 {[%clk
0:02:43.2]} 10. cxd4 {[%clk 0:02:40.2]} 10... Nxd4 {[%clk 0:02:43]} 11. Re1
{[%clk 0:02:19.9]} 11... Bc5 {[%clk 0:02:17.7]} 12. Bd3 {[%clk 0:02:19.3]} 12...
Nc6 {[%clk 0:01:57.3]} 13. Qe2 {[%clk 0:02:16.3]} 13... O-O-O {[%clk 0:01:51.3]}
14. a3 {[%clk 0:02:07.3]} 14... Kb8 {[%clk 0:01:48.7]} 15. b4 {[%clk 0:02:05.5]}
15... Be7 {[%clk 0:01:36.9]} 16. Nb3 {[%clk 0:01:58.9]} 16... Rhg8 {[%clk
0:01:35.5]} 17. Rec1 {[%clk 0:01:54.2]} 17... f6 {[%clk 0:01:17.4]} 18. Bxh7
{[%clk 0:01:43.2]} 18... Rg7 {[%clk 0:01:13]} 19. Bd3 {[%clk 0:01:43.3]} 19...
Rdg8 {[%clk 0:01:05.7]} 20. g3 {[%clk 0:01:43.5]} 20... h5 {[%clk 0:00:37.4]}
21. Nc5 {[%clk 0:01:39.2]} 21... Bc8 {[%clk 0:00:23]} 22. Na4 {[%clk 0:01:10.7]}
22... Nd4 {[%clk 0:00:19.4]} 23. Qe3 {[%clk 0:00:47.4]} 23... Nxf3+ {[%clk
0:00:17.2]} 24. Qxf3 {[%clk 0:00:48.3]} 24... Qd4 {[%clk 0:00:17.2]} 25. Rd1
{[%clk 0:00:33.6]} 25... Rxg3+ {[%clk 0:00:16.8]} 26. hxg3 {[%clk 0:00:33]}
26... Rxg3+ {[%clk 0:00:17.7]} 27. Qxg3 {[%clk 0:00:33.1]} 27... fxe5 {[%clk
0:00:11.8]} 28. Bf1 {[%clk 0:00:29.4]} 28... Qf4 {[%clk 0:00:09.3]} 29. Qxf4
{[%clk 0:00:28.9]} 29... exf4 {[%clk 0:00:10.2]} 30. Nc5 {[%clk 0:00:28.7]} 1-0

[Event "Early-Titled-Tuesday-Blitz-January-30-2024"]
[Site "Chess.com"]
[Date "2024.01.30"]
[Round "8"]
[White "Talent-OF-Slovenia"]
[Black "PepeCuenca"]
[Result "0-1"]
[WhiteElo "2480"]
[BlackElo "2668"]
[TimeControl "180+1"]
[EndTime "9:29:33 PST"]
[Termination "PepeCuenca won by resignation"]

1. e4 {[%clk 0:02:54]} 1... c5 {[%clk 0:03:00]} 2. Nf3 {[%clk 0:02:52.3]} 2...
Nc6 {[%clk 0:03:00.7]} 3. Bb5 {[%clk 0:02:52]} 3... e5 {[%clk 0:03:00.1]} 4.
Bxc6 {[%clk 0:02:52.1]} 4... dxc6 {[%clk 0:02:59.6]} 5. O-O {[%clk 0:02:52.4]}
5... f6 {[%clk 0:02:56]} 6. d3 {[%clk 0:02:46.9]} 6... Ne7 {[%clk 0:02:54.6]} 7.
h3 {[%clk 0:02:47.3]} 7... Be6 {[%clk 0:02:51.3]} 8. b3 {[%clk 0:02:45.8]} 8...
Qd7 {[%clk 0:02:47.8]} 9. Be3 {[%clk 0:02:40.8]} 9... b6 {[%clk 0:02:47.4]} 10.
Qe2 {[%clk 0:02:39.2]} 10... g5 {[%clk 0:02:43.4]} 11. Nbd2 {[%clk 0:02:29.2]}
11... Ng6 {[%clk 0:02:41.1]} 12. a4 {[%clk 0:02:20.5]} 12... h5 {[%clk
0:02:20.2]} 13. a5 {[%clk 0:01:46.3]} 13... b5 {[%clk 0:02:17.9]} 14. Rfd1
{[%clk 0:01:31.8]} 14... g4 {[%clk 0:02:14.1]} 15. Nh2 {[%clk 0:01:25]} 15...
gxh3 {[%clk 0:02:11.5]} 16. g3 {[%clk 0:01:25.4]} 16... O-O-O {[%clk 0:01:49]}
17. Kh1 {[%clk 0:01:07.3]} 17... Bd6 {[%clk 0:01:39.6]} 18. c4 {[%clk
0:00:42.4]} 18... b4 {[%clk 0:01:34.3]} 19. Qf1 {[%clk 0:00:37.4]} 19... h4
{[%clk 0:01:30.3]} 20. g4 {[%clk 0:00:32.1]} 20... Bxg4 {[%clk 0:01:11.3]} 21.
f3 {[%clk 0:00:31.9]} 21... Be6 {[%clk 0:01:08.3]} 22. Qf2 {[%clk 0:00:31.3]}
22... Nf4 {[%clk 0:01:03.1]} 23. Bxf4 {[%clk 0:00:17.3]} 23... exf4 {[%clk
0:01:03.4]} 24. d4 {[%clk 0:00:17.9]} 24... cxd4 {[%clk 0:01:01.4]} 25. Qxd4
{[%clk 0:00:17.6]} 25... Be5 {[%clk 0:00:56.1]} 26. Qxd7+ {[%clk 0:00:10.6]}
26... Rxd7 {[%clk 0:00:57]} 27. Ra4 {[%clk 0:00:10.3]} 27... Rhd8 {[%clk
0:00:55.4]} 28. Ra2 {[%clk 0:00:10.2]} 28... Rd3 {[%clk 0:00:49.4]} 29. Nhf1
{[%clk 0:00:07.6]} 29... Rxf3 {[%clk 0:00:45.2]} 30. Rda1 {[%clk 0:00:05.1]}
30... Rfd3 {[%clk 0:00:37.4]} 31. a6 {[%clk 0:00:02.3]} 31... Bxa1 {[%clk
0:00:33]} 0-1

[Event "Early-Titled-Tuesday-Blitz-January-30-2024"]
[Site "Chess.com"]
[Date "2024.01.30"]
[Round "8"]
[White "Sebastian"]
[Black "Gabrielian_Artur"]
[Result "0-1"]
[WhiteElo "2945"]
[BlackElo "2783"]
[TimeControl "180+1"]
[EndTime "9:29:35 PST"]
[Termination "Gabrielian_Artur won on time"]

1. e4 {[%clk 0:03:00.9]} 1... c5 {[%clk 0:02:59.5]} 2. Nf3 {[%clk 0:03:00.6]}
2... d6 {[%clk 0:02:59.8]} 3. d4 {[%clk 0:03:00.4]} 3... cxd4 {[%clk 0:03:00.2]}
4. Nxd4 {[%clk 0:03:01]} 4... Nf6 {[%clk 0:03:00.4]} 5. Nc3 {[%clk 0:03:01.7]}
5... Nc6 {[%clk 0:03:00.5]} 6. Bg5 {[%clk 0:03:01.9]} 6... Bd7 {[%clk
0:03:00.6]} 7. Qd2 {[%clk 0:03:01.9]} 7... Rc8 {[%clk 0:03:00.8]} 8. f4 {[%clk
0:02:58]} 8... Nxd4 {[%clk 0:03:01]} 9. Qxd4 {[%clk 0:02:58]} 9... Qb6 {[%clk
0:03:01.3]} 10. Qxb6 {[%clk 0:02:49.3]} 10... axb6 {[%clk 0:03:00.9]} 11. Bd3
{[%clk 0:02:48.6]} 11... e6 {[%clk 0:02:52.7]} 12. O-O-O {[%clk 0:02:47.6]}
12... Nh5 {[%clk 0:02:52.7]} 13. f5 {[%clk 0:02:36.9]} 13... Be7 {[%clk
0:02:40.3]} 14. Be3 {[%clk 0:02:36.8]} 14... g6 {[%clk 0:02:11]} 15. fxe6 {[%clk
0:02:30.8]} 15... fxe6 {[%clk 0:02:10.8]} 16. Bxb6 {[%clk 0:02:09.9]} 16... Nf4
{[%clk 0:02:09.8]} 17. g3 {[%clk 0:02:07]} 17... Nxd3+ {[%clk 0:02:07]} 18. Rxd3
{[%clk 0:02:07.9]} 18... Rf8 {[%clk 0:02:01.9]} 19. Rhd1 {[%clk 0:02:06.6]}
19... h5 {[%clk 0:01:56.8]} 20. Ba5 {[%clk 0:02:05.4]} 20... Rf2 {[%clk
0:01:50]} 21. Bb4 {[%clk 0:01:48.2]} 21... Bb5 {[%clk 0:01:46.9]} 22. Rd4 {[%clk
0:01:37.9]} 22... e5 {[%clk 0:01:45.6]} 23. Rxd6 {[%clk 0:01:09.4]} 23... Bxd6
{[%clk 0:01:42]} 24. Rxd6 {[%clk 0:01:10.3]} 24... Bc6 {[%clk 0:01:05]} 25. b3
{[%clk 0:00:36.1]} 25... Kf7 {[%clk 0:00:59.1]} 26. h4 {[%clk 0:00:35.9]} 26...
Rf3 {[%clk 0:00:55.6]} 27. Nd5 {[%clk 0:00:31.8]} 27... Rxg3 {[%clk 0:00:48.9]}
28. Rf6+ {[%clk 0:00:19.7]} 28... Kg7 {[%clk 0:00:48.1]} 29. Re6 {[%clk
0:00:20.3]} 29... Re8 {[%clk 0:00:40]} 30. Be7 {[%clk 0:00:14.8]} 30... Bxd5
{[%clk 0:00:28.8]} 31. exd5 {[%clk 0:00:14.8]} 31... Kf7 {[%clk 0:00:29.2]} 32.
Rb6 {[%clk 0:00:01]} 32... Rxe7 {[%clk 0:00:29]} 0-1

[Event "Early-Titled-Tuesday-Blitz-January-30-2024"]
[Site "Chess.com"]
[Date "2024.01.30"]
[Round "8"]
[White "JoachimBN"]
[Black "GMSrinath"]
[Result "1-0"]
[WhiteElo "2610"]
[BlackElo "2808"]
[TimeControl "180+1"]
[EndTime "9:29:39 PST"]
[Termination "JoachimBN won by resignation"]

1. d4 {[%clk 0:02:58.4]} 1... f5 {[%clk 0:02:53.7]} 2. Nc3 {[%clk 0:02:06.1]}
2... Nf6 {[%clk 0:02:52]} 3. Bg5 {[%clk 0:02:03]} 3... Ne4 {[%clk 0:02:51.6]} 4.
Nxe4 {[%clk 0:01:54]} 4... fxe4 {[%clk 0:02:52.3]} 5. Qd2 {[%clk 0:01:52.8]}
5... d5 {[%clk 0:02:52.6]} 6. f3 {[%clk 0:01:51.6]} 6... Bf5 {[%clk 0:02:50.4]}
7. g4 {[%clk 0:01:48.9]} 7... Bg6 {[%clk 0:02:49.9]} 8. Nh3 {[%clk 0:01:42.7]}
8... exf3 {[%clk 0:02:38.8]} 9. exf3 {[%clk 0:01:41.3]} 9... Nc6 {[%clk
0:02:39.3]} 10. Bb5 {[%clk 0:01:36.1]} 10... Qd7 {[%clk 0:02:36.7]} 11. O-O-O
{[%clk 0:01:31.6]} 11... O-O-O {[%clk 0:02:36.8]} 12. Nf4 {[%clk 0:01:29.4]}
12... Bf7 {[%clk 0:02:36.3]} 13. Nd3 {[%clk 0:01:29.5]} 13... Qd6 {[%clk
0:02:22.7]} 14. Bf4 {[%clk 0:01:28.1]} 14... Qg6 {[%clk 0:02:22.5]} 15. Bg3
{[%clk 0:01:21.1]} 15... Be8 {[%clk 0:02:11.4]} 16. Kb1 {[%clk 0:01:12.2]} 16...
h5 {[%clk 0:02:06.9]} 17. h3 {[%clk 0:01:07.7]} 17... hxg4 {[%clk 0:02:06.7]}
18. Bxc6 {[%clk 0:01:04.2]} 18... Qxc6 {[%clk 0:02:03.5]} 19. hxg4 {[%clk
0:00:59.8]} 19... Rxh1 {[%clk 0:01:59.4]} 20. Rxh1 {[%clk 0:01:00.7]} 20... e6
{[%clk 0:01:59.9]} 21. Ne5 {[%clk 0:00:49.7]} 21... Qb6 {[%clk 0:01:56.8]} 22.
Bh4 {[%clk 0:00:33.9]} 22... Rd6 {[%clk 0:01:48.3]} 23. Qf4 {[%clk 0:00:33.1]}
23... Qb5 {[%clk 0:00:55.4]} 24. Qxf8 {[%clk 0:00:28.4]} 24... Kb8 {[%clk
0:00:56]} 25. Bg5 {[%clk 0:00:23.8]} 25... a5 {[%clk 0:00:52]} 26. b3 {[%clk
0:00:22]} 26... Ka7 {[%clk 0:00:48.4]} 27. Be7 {[%clk 0:00:18.4]} 27... Ra6
{[%clk 0:00:42.7]} 28. a4 {[%clk 0:00:16.6]} 28... Qb6 {[%clk 0:00:34]} 29. Bc5
{[%clk 0:00:15.2]} 29... Bxa4 {[%clk 0:00:30.5]} 30. Bxb6+ {[%clk 0:00:15]}
30... Rxb6 {[%clk 0:00:31.4]} 31. Qc5 {[%clk 0:00:14.3]} 31... Bb5 {[%clk
0:00:31.6]} 32. Rh7 {[%clk 0:00:13.8]} 32... a4 {[%clk 0:00:31.5]} 33. Rxg7
{[%clk 0:00:14.3]} 33... axb3 {[%clk 0:00:31.1]} 34. cxb3 {[%clk 0:00:13.3]} 1-0

[Event "Early-Titled-Tuesday-Blitz-January-30-2024"]
[Site "Chess.com"]
[Date "2024.01.30"]
[Round "8"]
[White "cthulhuuu"]
[Black "Tunahan_Makaraci"]
[Result "1-0"]
[WhiteElo "2375"]
[BlackElo "2526"]
[TimeControl "180+1"]
[EndTime "9:29:43 PST"]
[Termination "cthulhuuu won by resignation"]

1. e4 {[%clk 0:02:59.9]} 1... c5 {[%clk 0:02:54.5]} 2. Nf3 {[%clk 0:03:00.1]}
2... g6 {[%clk 0:02:54.5]} 3. g3 {[%clk 0:03:00.4]} 3... Bg7 {[%clk 0:02:54.3]}
4. Bg2 {[%clk 0:03:01]} 4... Nc6 {[%clk 0:02:54.7]} 5. O-O {[%clk 0:03:01.2]}
5... d6 {[%clk 0:02:55.2]} 6. d3 {[%clk 0:03:01.8]} 6... Nf6 {[%clk 0:02:55.5]}
7. Re1 {[%clk 0:03:01.9]} 7... O-O {[%clk 0:02:55.2]} 8. e5 {[%clk 0:03:02.6]}
8... dxe5 {[%clk 0:02:51.8]} 9. Nxe5 {[%clk 0:03:03.5]} 9... Nxe5 {[%clk
0:02:51.9]} 10. Rxe5 {[%clk 0:03:03.9]} 10... Nd7 {[%clk 0:02:44.5]} 11. Re1
{[%clk 0:03:03.4]} 11... Rb8 {[%clk 0:02:43.2]} 12. Nc3 {[%clk 0:02:55.6]} 12...
b6 {[%clk 0:02:38.7]} 13. h4 {[%clk 0:02:53.3]} 13... Bb7 {[%clk 0:02:38.5]} 14.
Ne4 {[%clk 0:02:53.9]} 14... h6 {[%clk 0:02:30.3]} 15. a4 {[%clk 0:02:09]} 15...
f5 {[%clk 0:02:25.1]} 16. Nc3 {[%clk 0:02:09.2]} 16... Bxg2 {[%clk 0:02:24.7]}
17. Kxg2 {[%clk 0:02:10.1]} 17... e5 {[%clk 0:02:19.7]} 18. Qf3 {[%clk
0:01:30.6]} 18... Qc7 {[%clk 0:01:47.5]} 19. Nd5 {[%clk 0:01:27.3]} 19... Qd6
{[%clk 0:01:45.2]} 20. Ne3 {[%clk 0:01:27.5]} 20... Rbe8 {[%clk 0:01:43.1]} 21.
Nc4 {[%clk 0:01:24.9]} 21... Qe6 {[%clk 0:01:39.2]} 22. Qb7 {[%clk 0:01:24.7]}
22... e4 {[%clk 0:01:32.4]} 23. Bf4 {[%clk 0:01:18.9]} 23... g5 {[%clk
0:01:16.2]} 24. hxg5 {[%clk 0:01:16.1]} 24... hxg5 {[%clk 0:01:15.9]} 25. Bxg5
{[%clk 0:01:05.2]} 25... f4 {[%clk 0:01:15.9]} 26. Rxe4 {[%clk 0:00:58.4]} 26...
f3+ {[%clk 0:01:15.2]} 27. Kh2 {[%clk 0:00:57.2]} 27... Qf5 {[%clk 0:01:09]} 28.
Bh4 {[%clk 0:00:25.6]} 28... Rxe4 {[%clk 0:00:42.5]} 29. Qxe4 {[%clk 0:00:25.5]}
29... Qh5 {[%clk 0:00:35.1]} 30. Qe6+ {[%clk 0:00:23.7]} 30... Kh8 {[%clk
0:00:24.2]} 31. Qxd7 {[%clk 0:00:21.9]} 31... Bf6 {[%clk 0:00:24.6]} 32. Qh3
{[%clk 0:00:15.7]} 1-0

[Event "Early-Titled-Tuesday-Blitz-January-30-2024"]
[Site "Chess.com"]
[Date "2024.01.30"]
[Round "8"]
[White "falzehope0"]
[Black "Logman74"]
[Result "0-1"]
[WhiteElo "2386"]
[BlackElo "2565"]
[TimeControl "180+1"]
[EndTime "9:29:45 PST"]
[Termination "Logman74 won on time"]

1. d4 {[%clk 0:02:59.3]} 1... Nf6 {[%clk 0:02:59.9]} 2. e3 {[%clk 0:03:00.2]}
2... g6 {[%clk 0:02:59.6]} 3. Bd3 {[%clk 0:02:50.8]} 3... Bg7 {[%clk 0:02:58.2]}
4. f4 {[%clk 0:02:51.2]} 4... d6 {[%clk 0:02:55.9]} 5. Nf3 {[%clk 0:02:51.4]}
5... O-O {[%clk 0:02:56.1]} 6. O-O {[%clk 0:02:42.3]} 6... Nbd7 {[%clk
0:02:54.3]} 7. f5 {[%clk 0:02:40.8]} 7... c5 {[%clk 0:02:50.5]} 8. Qe1 {[%clk
0:02:38.6]} 8... b6 {[%clk 0:02:40.5]} 9. Qh4 {[%clk 0:02:36.6]} 9... Bb7 {[%clk
0:02:40.9]} 10. fxg6 {[%clk 0:02:32.7]} 10... hxg6 {[%clk 0:02:31.1]} 11. Ng5
{[%clk 0:02:30]} 11... cxd4 {[%clk 0:02:29.9]} 12. Bb5 {[%clk 0:02:08.3]} 12...
Re8 {[%clk 0:01:46.5]} 13. exd4 {[%clk 0:01:53.7]} 13... a6 {[%clk 0:01:42.7]}
14. Bxd7 {[%clk 0:01:40.1]} 14... Qxd7 {[%clk 0:01:42.5]} 15. h3 {[%clk
0:01:39.4]} 15... Rac8 {[%clk 0:01:23.7]} 16. c3 {[%clk 0:01:34.9]} 16... Qc6
{[%clk 0:00:55.3]} 17. Rf2 {[%clk 0:01:03.5]} 17... e5 {[%clk 0:00:53.6]} 18.
Nd2 {[%clk 0:00:20.3]} 18... exd4 {[%clk 0:00:51.5]} 19. cxd4 {[%clk 0:00:20.6]}
19... Re1+ {[%clk 0:00:49.8]} 20. Nf1 {[%clk 0:00:20.9]} 20... Rce8 {[%clk
0:00:22.9]} 21. b3 {[%clk 0:00:19.9]} 21... R8e2 {[%clk 0:00:21.8]} 22. Ba3
{[%clk 0:00:10.6]} 22... Rxf2 {[%clk 0:00:20.5]} 23. Qxf2 {[%clk 0:00:10.1]}
23... Rxa1 {[%clk 0:00:19.8]} 24. Bb2 {[%clk 0:00:06.9]} 24... Rxa2 {[%clk
0:00:19.2]} 25. Nf3 {[%clk 0:00:05.4]} 25... Ne4 {[%clk 0:00:17.7]} 26. Qe2
{[%clk 0:00:03.4]} 26... Qd5 {[%clk 0:00:15.2]} 27. Qc2 {[%clk 0:00:02.1]} 27...
Rxb2 {[%clk 0:00:12.8]} 28. Qxb2 {[%clk 0:00:01.8]} 28... Nc5 {[%clk 0:00:12.4]}
0-1

[Event "Early-Titled-Tuesday-Blitz-January-30-2024"]
[Site "Chess.com"]
[Date "2024.01.30"]
[Round "8"]
[White "Roman_Ovetchkin"]
[Black "Alex_Sahakyan2006"]
[Result "0-1"]
[WhiteElo "2661"]
[BlackElo "2875"]
[TimeControl "180+1"]
[EndTime "9:29:46 PST"]
[Termination "Alex_Sahakyan2006 won by resignation"]

1. d4 {[%clk 0:02:59.6]} 1... Nf6 {[%clk 0:02:58.5]} 2. c4 {[%clk 0:02:59.4]}
2... c5 {[%clk 0:02:58.3]} 3. d5 {[%clk 0:02:59.3]} 3... b5 {[%clk 0:02:58.5]}
4. cxb5 {[%clk 0:02:58.6]} 4... a6 {[%clk 0:02:58.9]} 5. bxa6 {[%clk 0:02:59.1]}
5... e6 {[%clk 0:02:59.4]} 6. Nc3 {[%clk 0:02:58.7]} 6... exd5 {[%clk
0:02:57.4]} 7. Nxd5 {[%clk 0:02:58.7]} 7... Be7 {[%clk 0:02:57.6]} 8. Nf3 {[%clk
0:02:51.6]} 8... Nxd5 {[%clk 0:02:51.7]} 9. Qxd5 {[%clk 0:02:50.8]} 9... Nc6
{[%clk 0:02:52.1]} 10. Bd2 {[%clk 0:02:47.1]} 10... Bxa6 {[%clk 0:02:49.2]} 11.
e3 {[%clk 0:02:42.9]} 11... Bxf1 {[%clk 0:02:48.4]} 12. Kxf1 {[%clk 0:02:43.8]}
12... O-O {[%clk 0:02:39.8]} 13. g3 {[%clk 0:02:39.7]} 13... Bf6 {[%clk
0:02:33.4]} 14. Bc3 {[%clk 0:02:24.2]} 14... Bxc3 {[%clk 0:02:28.7]} 15. bxc3
{[%clk 0:02:24.1]} 15... Qf6 {[%clk 0:02:25]} 16. Kg2 {[%clk 0:02:24.2]} 16...
Ra5 {[%clk 0:02:13.4]} 17. Rhd1 {[%clk 0:02:12.6]} 17... Rd8 {[%clk 0:01:33.6]}
18. Qd6 {[%clk 0:02:08.1]} 18... Qxd6 {[%clk 0:01:25.8]} 19. Rxd6 {[%clk
0:02:07.5]} 19... Kf8 {[%clk 0:01:26.7]} 20. Rd5 {[%clk 0:01:28.2]} 20... d6
{[%clk 0:01:26.1]} 21. Nd2 {[%clk 0:01:10.8]} 21... Ke7 {[%clk 0:01:13.4]} 22.
Rh5 {[%clk 0:01:02.2]} 22... h6 {[%clk 0:01:08.6]} 23. Nc4 {[%clk 0:01:01.4]}
23... Ra6 {[%clk 0:00:59.5]} 24. Rd5 {[%clk 0:00:57]} 24... Na5 {[%clk
0:00:57.9]} 25. Nd2 {[%clk 0:00:53.3]} 25... Rb8 {[%clk 0:00:53]} 26. e4 {[%clk
0:00:37.2]} 26... Rb2 {[%clk 0:00:52]} 27. e5 {[%clk 0:00:34.4]} 27... Ke6
{[%clk 0:00:52.5]} 28. c4 {[%clk 0:00:31.4]} 28... dxe5 {[%clk 0:00:47.9]} 29.
Re1 {[%clk 0:00:25.2]} 29... f6 {[%clk 0:00:47.9]} 30. a3 {[%clk 0:00:11.9]}
30... Ra2 {[%clk 0:00:46]} 31. Rd3 {[%clk 0:00:11.2]} 31... Rd6 {[%clk
0:00:37.5]} 32. Rxd6+ {[%clk 0:00:09.9]} 32... Kxd6 {[%clk 0:00:38.4]} 33. Ne4+
{[%clk 0:00:08.6]} 33... Kc6 {[%clk 0:00:38.8]} 34. Rc1 {[%clk 0:00:07.1]} 34...
Rxa3 {[%clk 0:00:36.3]} 35. g4 {[%clk 0:00:07.7]} 35... Ra4 {[%clk 0:00:32.5]}
36. Nd2 {[%clk 0:00:07.9]} 36... Ra2 {[%clk 0:00:32.9]} 37. Ne4 {[%clk
0:00:07.5]} 37... Nb3 {[%clk 0:00:32.6]} 38. Ng3 {[%clk 0:00:06.4]} 38... Nxc1
{[%clk 0:00:32.8]} 0-1

[Event "Early-Titled-Tuesday-Blitz-January-30-2024"]
[Site "Chess.com"]
[Date "2024.01.30"]
[Round "8"]
[White "zverr1"]
[Black "Alexchess1984"]
[Result "1-0"]
[WhiteElo "2576"]
[BlackElo "2732"]
[TimeControl "180+1"]
[EndTime "9:29:46 PST"]
[Termination "zverr1 won by resignation"]

1. d4 {[%clk 0:03:00.9]} 1... Nf6 {[%clk 0:02:59.6]} 2. c4 {[%clk 0:03:00.5]}
2... g6 {[%clk 0:02:59.1]} 3. Nc3 {[%clk 0:02:59.1]} 3... d5 {[%clk 0:02:59.7]}
4. cxd5 {[%clk 0:02:54.1]} 4... Nxd5 {[%clk 0:03:00.6]} 5. Bd2 {[%clk
0:02:54.9]} 5... Bg7 {[%clk 0:02:59.9]} 6. e4 {[%clk 0:02:54.6]} 6... Nxc3
{[%clk 0:02:59.7]} 7. Bxc3 {[%clk 0:02:55.5]} 7... O-O {[%clk 0:02:58.9]} 8. Qd2
{[%clk 0:02:54.9]} 8... b6 {[%clk 0:02:57]} 9. Nf3 {[%clk 0:02:50.6]} 9... Bb7
{[%clk 0:02:56.8]} 10. Bd3 {[%clk 0:02:49.2]} 10... e6 {[%clk 0:02:55.9]} 11.
O-O {[%clk 0:02:48.1]} 11... Nd7 {[%clk 0:02:56.1]} 12. Bb5 {[%clk 0:02:27.1]}
12... Bxe4 {[%clk 0:02:52]} 13. Qf4 {[%clk 0:01:56.4]} 13... Bd5 {[%clk
0:02:47.6]} 14. Ne5 {[%clk 0:01:53.6]} 14... Nxe5 {[%clk 0:02:42.7]} 15. dxe5
{[%clk 0:01:53.4]} 15... c6 {[%clk 0:02:42.9]} 16. Be2 {[%clk 0:01:51.4]} 16...
Qe7 {[%clk 0:02:39.1]} 17. h4 {[%clk 0:01:46.3]} 17... Rfd8 {[%clk 0:02:37.5]}
18. h5 {[%clk 0:01:45.1]} 18... c5 {[%clk 0:02:30.2]} 19. h6 {[%clk 0:01:36.6]}
19... Bf8 {[%clk 0:02:28.3]} 20. Rfd1 {[%clk 0:01:32.1]} 20... Rac8 {[%clk
0:02:06.4]} 21. Ba6 {[%clk 0:01:30.8]} 21... Bb7 {[%clk 0:02:01.3]} 22. Bxb7
{[%clk 0:01:25.4]} 22... Qxb7 {[%clk 0:02:02.2]} 23. Rd6 {[%clk 0:01:22]} 23...
Qe7 {[%clk 0:01:41.2]} 24. Rad1 {[%clk 0:01:20.3]} 24... g5 {[%clk 0:01:36.7]}
25. Qd2 {[%clk 0:01:04.3]} 25... Rxd6 {[%clk 0:01:02.3]} 26. exd6 {[%clk
0:01:05.2]} 26... Qd8 {[%clk 0:01:02.7]} 27. Qe3 {[%clk 0:00:59.4]} 27... Bxd6
{[%clk 0:00:22.3]} 28. Be5 {[%clk 0:00:25.9]} 28... Rc6 {[%clk 0:00:22.1]} 29.
Qg3 {[%clk 0:00:25.9]} 29... f6 {[%clk 0:00:19.2]} 30. Rxd6 {[%clk 0:00:15.4]}
30... Rxd6 {[%clk 0:00:17.8]} 31. Bxd6 {[%clk 0:00:16.3]} 31... e5 {[%clk
0:00:17.4]} 32. Qb3+ {[%clk 0:00:16.4]} 32... Kh8 {[%clk 0:00:14.3]} 33. Qf7
{[%clk 0:00:16.5]} 1-0